fUSD/lending_fUSD_20251024
["ID","MTS","AMOUNT","RATE_DAILY","PERIOD"]
[392326317,1761340240351,-151.0,0.00036877,2]
[392326318,1761340240360,-151.0,0.00036877,2]
[392326320,1761340240369,-151.0,0.00036877,2]
[392326322,1761340240378,-151.0,0.00036877,2]
[392326324,1761340240387,-151.0,0.00036877,2]
[392326325,1761340240396,-151.0,0.00036877,2]
[392326326,1761340240405,-151.0,0.00036877,2]
[392326327,1761340240415,-151.0,0.00036877,2]
[392326328,1761340240423,-272.84897206,0.00036877,2]
[392326329,1761340240432,-151.0,0.00036877,2]
[392326330,1761340240441,-151.0,0.00036877,2]
[392326331,1761340240451,-151.0,0.00036877,2]
[392326332,1761340240460,-151.0,0.00036877,2]
[392326333,1761340240474,-151.0,0.00036877,2]
[392326334,1761340240484,-151.0,0.00036877,2]
[392326335,1761340240494,-151.0,0.00036877,2]
[392326336,1761340240503,-151.0,0.00036877,2]
[392326337,1761340240516,-151.0,0.00036877,2]
[392326338,1761340240525,-151.0,0.00036877,2]
[392326339,1761340240535,-151.0,0.00036877,2]
[392326340,1761340240546,-151.0,0.00036877,2]
[392326341,1761340240556,-151.0,0.00036877,2]
[392326342,1761340240566,-151.0,0.00036877,2]
[392326343,1761340240575,-151.0,0.00036877,2]
[392326344,1761340240585,-151.0,0.00036877,2]
[392326345,1761340240595,-151.0,0.00036877,2]
[392326346,1761340240604,-151.0,0.00036877,2]
[392326347,1761340240613,-151.0,0.00036877,2]
[392326348,1761340240622,-151.0,0.00036877,2]
[392326349,1761340240631,-151.0,0.00036877,2]
[392326351,1761340240641,-151.0,0.00036877,2]
[392326353,1761340240651,-151.0,0.00036877,2]
[392326356,1761340240662,-151.0,0.00036877,2]
[392326357,1761340240671,-151.0,0.00036877,2]
[392326358,1761340240681,-500.0,0.00036877,2]
[392326359,1761340240691,-500.0,0.00036877,2]
[392326360,1761340240700,-500.0,0.00036877,2]
[392326362,1761340240709,-500.0,0.00036877,2]
[392326363,1761340240718,-500.0,0.00036877,2]
[392326364,1761340240727,-500.0,0.00036877,2]
[392326365,1761340240736,-489.64647954,0.00036877,2]
[392326366,1761340240745,-536.81,0.00036877,14]
[392326367,1761340240754,-379.8987,0.00036888,7]
[392326368,1761340240763,-200.7149973,0.00036899,2]
[392326369,1761340240772,-10503.4071982,0.00036899,2]
[392326370,1761340240782,-98779.4351017,0.00036899,2]
[392326371,1761340240791,-2303.9087415,0.00036899,2]
[392326372,1761340240800,-410.11137599,0.00036909,2]
[392326373,1761340240809,-500.0,0.00036983,5]
[392326374,1761340240818,-500.0,0.00036983,5]
[392326375,1761340240827,-500.0,0.00036983,5]
[392326376,1761340240836,-500.0,0.00036999,2]
[392326377,1761340240846,-16500.6199677,0.00037,2]
[392326378,1761340240855,-500.0,0.00037133,5]
[392326379,1761340240864,-318.91738648,0.00037133,5]
[392326380,1761340240873,-500.0,0.00037133,5]
[392326381,1761340240882,-212.30389607,0.00037139,2]
[392326382,1761340240891,-151.64545188,0.00037139,2]
[392326383,1761340240900,-4182.90531,0.00037139,2]
[392326384,1761340240909,-300.0,0.00037147,2]
[392326385,1761340240919,-536.81,0.00037151,14]
[392326386,1761340240929,-518.0,0.00037175,2]
[392326387,1761340240939,-176.55259326,0.000372,120]
[392326388,1761340240950,-14189.94824687,0.00037235,2]
[392326389,1761340240960,-500.0,0.00037267,5]
[392326390,1761340240970,-500.0,0.00037267,5]
[392326391,1761340240980,-454.0,0.00037285,7]
[392326392,1761340240989,-166.66,0.00037295,30]
[392326393,1761340240999,-696.48,0.00037342,2]
[392326394,1761340241007,-696.48,0.00037342,2]
[392326395,1761340241017,-931.72,0.00037342,2]
[392326396,1761340241026,-1000.0,0.000374,7]
[392326397,1761340241036,-500.0,0.00037424,30]
[392326398,1761340241046,-536.81,0.00037425,14]
[392326399,1761340241055,-500.0,0.00037445,30]
[392326400,1761340241064,-710.0,0.00037454,2]
[392326401,1761340241074,-500.0,0.0003748,30]
[392326402,1761340241083,-16284.0757168,0.0003752,3]
[392326403,1761340241093,-3524.5325,0.00037523,2]
[392326404,1761340241103,-1000.0,0.00037523,120]
[392326405,1761340241112,-500.0,0.00037529,2]
[392326406,1761340241122,-465.79407674,0.00037529,30]
[392326407,1761340241131,-33170.7581,0.0003753,2]
[392326408,1761340241140,-1000.0,0.0003753,2]
[392326409,1761340241149,-1000.0,0.00037531,5]
[392326410,1761340241159,-500.0,0.00037531,5]
[392326411,1761340241168,-1200.0,0.00037534,7]
[392326412,1761340241179,-500.0,0.00037534,7]
[392326413,1761340241189,-160.36491304,0.00037595,15]
[392326414,1761340241199,-1000.0,0.000376,7]
[392326415,1761340241209,-500.0,0.0003762,7]
[392326416,1761340241219,-16284.0757168,0.00037623,3]
[392326417,1761340241228,-151.0,0.00037627,14]
[392326418,1761340241238,-500.0,0.0003763,7]
[392326419,1761340241247,-500.0,0.0003763,7]
[392326420,1761340241257,-500.0,0.0003763,7]
[392326421,1761340241266,-500.0,0.0003763,7]
[392326422,1761340241275,-500.0,0.0003763,7]
[392326423,1761340241285,-500.0,0.0003763,7]
[392326424,1761340241295,-500.0,0.0003763,7]
[392326425,1761340241304,-500.0,0.0003763,7]
[392326426,1761340241313,-500.0,0.0003763,7]
[392326427,1761340241325,-500.0,0.0003763,7]
[392326428,1761340241334,-500.0,0.0003763,7]
[392326429,1761340241345,-500.0,0.0003763,7]
[392326430,1761340241354,-500.0,0.0003763,7]
[392326431,1761340241363,-500.0,0.0003763,7]
[392326432,1761340241373,-500.0,0.0003763,7]
[392326433,1761340241383,-500.0,0.0003763,7]
[392326434,1761340241394,-500.0,0.0003763,7]
[392326435,1761340241404,-500.0,0.0003763,7]
[392326436,1761340241414,-500.0,0.0003763,7]
[392326437,1761340241424,-500.0,0.0003763,7]
[392326438,1761340241434,-500.0,0.0003763,7]
[392326439,1761340241443,-500.0,0.0003763,7]
[392326440,1761340241453,-500.0,0.0003763,7]
[392326441,1761340241462,-500.0,0.0003763,7]
[392326442,1761340241474,-500.0,0.0003763,7]
[392326443,1761340241484,-500.0,0.0003763,7]
[392326444,1761340241493,-500.0,0.0003763,7]
[392326445,1761340241503,-500.0,0.0003763,7]
[392326446,1761340241512,-500.0,0.0003763,7]
[392326447,1761340241522,-500.0,0.0003763,7]
[392326448,1761340241531,-500.0,0.0003763,7]
[392326449,1761340241540,-500.0,0.0003763,7]
[392326450,1761340241550,-500.0,0.0003763,7]
[392326451,1761340241559,-500.0,0.0003763,7]
[392326452,1761340241568,-500.0,0.0003763,7]
[392326453,1761340241577,-500.0,0.0003763,7]
[392326454,1761340241586,-500.0,0.0003763,7]
[392326455,1761340241595,-500.0,0.0003763,7]
[392326456,1761340241607,-500.77,0.0003763,7]
[392326457,1761340241616,-500.0,0.0003763,7]
[392326458,1761340241626,-500.0,0.0003763,7]
[392326459,1761340241635,-500.0,0.0003763,7]
[392326460,1761340241644,-500.0,0.0003763,7]
[392326461,1761340241654,-500.0,0.0003763,7]
[392326462,1761340241664,-500.0,0.0003763,7]
[392326463,1761340241675,-500.0,0.0003763,7]
[392326464,1761340241684,-500.0,0.0003763,7]
[392326465,1761340241693,-231.6,0.0003763,7]
[392326466,1761340241703,-20000.0,0.00037633,2]
[392326467,1761340241713,-14189.94824687,0.00037671,2]
[392326468,1761340241722,-346.16419732,0.00037694,2]
[392326469,1761340241731,-536.81,0.00037699,14]
[392326470,1761340241740,-16284.0757168,0.00037724,3]
[392326471,1761340241750,-500.0,0.00037758,30]
[392326472,1761340241760,-197.73475584,0.00037789,2]
[392326473,1761340241771,-1005.3645462,0.00037796,10]
[392326474,1761340241779,-500.0,0.00037815,5]
[392326475,1761340241790,-397.0,0.00037823,2]
[392326476,1761340241799,-500.0,0.00037896,30]
[392326477,1761340241808,-1551.0515092,0.00037911,120]
[392326478,1761340241817,-2193.0,0.0003795,2]
[392326479,1761340241827,-536.83,0.00037973,14]
[392326480,1761340241836,-48852.2271503,0.00037997,3]
[392326481,1761340241844,-512.99820734,0.00038,14]
[392326482,1761340241854,-5304.95900681,0.00038,2]
[392326483,1761340241863,-150.0,0.00038,2]
[392326484,1761340241872,-150.0,0.00038,2]
[392326485,1761340241881,-150.0,0.00038,2]
[392326486,1761340241890,-16284.0757168,0.00038006,3]
[392326487,1761340241898,-500.0,0.00038006,2]
[392326488,1761340241907,-97704.4543007,0.00038006,3]
[392326489,1761340241916,-67285.6065483,0.00038006,3]
[392326490,1761340241926,-151.0,0.00038007,30]
[392326491,1761340241935,-151.0,0.00038007,30]
[392326492,1761340241944,-151.0,0.00038007,30]
[392326493,1761340241953,-151.0,0.00038007,30]
[392326494,1761340241963,-151.0,0.00038013,14]
[392326495,1761340241972,-500.0,0.00038015,2]
[392326496,1761340241981,-151.0,0.00038016,30]
[392326497,1761340241991,-151.0,0.00038016,30]
[392326498,1761340242000,-151.0,0.00038016,30]
[392326499,1761340242009,-151.0,0.00038016,30]
[392326500,1761340242018,-151.0,0.00038016,30]
[392326501,1761340242027,-151.0,0.00038016,30]
[392326502,1761340242038,-151.0,0.00038016,30]
[392326503,1761340242047,-151.0,0.00038016,30]
[392326504,1761340242057,-213.525834,0.00038016,30]
[392326505,1761340242066,-151.0,0.00038016,30]
[392326506,1761340242075,-291.32004,0.00038016,30]
[392326507,1761340242085,-151.0,0.00038016,30]
[392326508,1761340242095,-151.0,0.00038016,30]
[392326509,1761340242104,-216.194599,0.00038016,30]
[392326510,1761340242114,-151.0,0.00038016,30]
[392326511,1761340242123,-151.0,0.00038016,30]
[392326512,1761340242133,-151.0,0.00038016,30]
[392326513,1761340242142,-151.0,0.00038016,30]
[392326514,1761340242151,-151.0,0.00038016,30]
[392326515,1761340242161,-151.0,0.00038016,30]
[392326516,1761340242171,-151.0,0.00038016,30]
[392326517,1761340242181,-151.0,0.00038016,30]
[392326518,1761340242190,-151.0,0.00038016,30]
[392326519,1761340242201,-270.78252,0.00038016,30]
[392326520,1761340242212,-151.0,0.00038016,30]
[392326521,1761340242222,-192905.9012,0.00038016,2]
[392326522,1761340242232,-166.66,0.00038019,30]
[392326523,1761340242241,-397.0,0.00038037,7]
[392326524,1761340242250,-829.22,0.0003804,2]
[392326525,1761340242261,-500.0,0.00038055,2]
[392326526,1761340242270,-166.66,0.00038057,2]
[392326527,1761340242280,-168.0,0.00038088,2]
[392326528,1761340242291,-11214.2677581,0.00038096,3]
[392326529,1761340242302,-10740.43642811,0.000381,2]
[392326530,1761340242311,-14189.94824687,0.00038106,2]
[392326531,1761340242321,-645.2214,0.00038117,2]
[392326532,1761340242331,-16284.0757168,0.00038126,3]
[392326533,1761340242341,-11214.2677581,0.00038126,3]
[392326534,1761340242350,-500.0,0.00038153,30]
[392326535,1761340242362,-500.0,0.00038155,2]
[392326536,1761340242372,-5000.0,0.00038156,2]
[392326537,1761340242382,-32568.1514336,0.00038215,3]
[392326538,1761340242390,-22428.5355161,0.00038215,3]
[392326539,1761340242399,-324.92947398,0.00038225,2]
[392326540,1761340242410,-151.0,0.00038236,30]
[392326541,1761340242419,-151.0,0.00038236,30]
[392326542,1761340242429,-11214.2677581,0.00038242,3]
[392326543,1761340242438,-3293.42354441,0.0003827,4]
[392326544,1761340242447,-151.0,0.0003827,30]
[392326545,1761340242457,-151.0,0.0003827,30]
[392326546,1761340242469,-16284.0757168,0.0003827,3]
[392326547,1761340242484,-11214.2677581,0.0003827,3]
[392326548,1761340242494,-16284.0757168,0.0003828,3]
[392326549,1761340242503,-11214.2677581,0.0003828,3]
[392326550,1761340242515,-11214.2677581,0.00038285,3]
[392326551,1761340242524,-16284.0757168,0.00038286,3]
[392326552,1761340242535,-11214.2677581,0.00038286,3]
[392326553,1761340242544,-151.0,0.0003829,30]
[392326554,1761340242554,-151.0,0.0003829,30]
[392326555,1761340242565,-151.0,0.0003829,30]
[392326556,1761340242576,-246.62389,0.0003829,30]
[392326557,1761340242586,-216.194599,0.0003829,30]
[392326558,1761340242596,-151.0,0.0003829,30]
[392326560,1761340242605,-151.0,0.0003829,30]
[392326561,1761340242624,-151.0,0.0003829,30]
[392326562,1761340242636,-151.0,0.0003829,30]
[392326563,1761340242649,-151.0,0.0003829,30]
[392326564,1761340242660,-151.0,0.0003829,30]
[392326565,1761340242670,-16284.0757168,0.00038291,3]
[392326566,1761340242680,-11214.2677581,0.00038291,3]
[392326567,1761340242690,-1654.0,0.00038295,5]
[392326568,1761340242699,-150.36,0.00038295,2]
[392326570,1761340242708,-407.35292496,0.00038295,2]
[392326573,1761340242717,-8135.48808057,0.000383,30]
[392326576,1761340242726,-696.48,0.00038301,2]
[392326579,1761340242735,-475.59,0.00038301,2]
[392326581,1761340242745,-696.48,0.00038301,2]
[392326583,1761340242753,-1392.96,0.00038301,2]
[392326585,1761340242763,-475.59,0.00038301,2]
[392326587,1761340242771,-951.18,0.00038301,2]
[392326589,1761340242780,-696.48,0.00038301,2]
[392326591,1761340242789,-1392.96,0.00038301,2]
[392326593,1761340242798,-475.59,0.00038301,2]
[392326594,1761340242808,-696.48,0.00038301,2]
[392326595,1761340242817,-951.18,0.00038301,2]
[392326596,1761340242826,-1392.96,0.00038301,2]
[392326597,1761340242836,-924.89,0.00038301,2]
[392326598,1761340242846,-696.48,0.00038301,2]
[392326599,1761340242856,-696.48,0.00038301,2]
[392326600,1761340242866,-696.48,0.00038301,2]
[392326601,1761340242875,-696.48,0.00038301,2]
[392326602,1761340242885,-696.48,0.00038301,2]
[392326603,1761340242894,-696.48,0.00038301,2]
[392326604,1761340242903,-696.48,0.00038301,2]
[392326605,1761340242913,-696.48,0.00038301,2]
[392326606,1761340242922,-696.48,0.00038301,2]
[392326607,1761340242931,-696.48,0.00038301,2]
[392326608,1761340242940,-696.48,0.00038301,2]
[392326609,1761340242950,-696.48,0.00038301,2]
[392326610,1761340242958,-696.48,0.00038301,2]
[392326611,1761340242968,-500.0,0.00038304,2]
[392326612,1761340242981,-151.0,0.00038305,30]
[392326613,1761340242991,-151.0,0.00038305,30]
[392326614,1761340243000,-151.0,0.00038305,30]
[392326615,1761340243010,-151.0,0.00038305,30]
[392326616,1761340243020,-151.0,0.00038305,30]
[392326617,1761340243030,-151.0,0.00038305,30]
[392326618,1761340243039,-151.0,0.00038305,30]
[392326619,1761340243048,-151.0,0.00038305,30]
[392326620,1761340243058,-30856.86475324,0.00038306,3]
[392326723,1761340384512,184.61,0.00013699,2]
[392326724,1761341107649,7183.221093,0.00015,2]
[392326725,1761341107676,2349147.43684826,0.00015,2]
[392326726,1761341128322,-275.4743872,0.000175,2]
[392326727,1761341272000,34224.43651189,0.00022,4]
[392326728,1761341274186,1798199.731324,0.00015,2]
[392326737,1761341432026,-46.11829812,0.000175,2]
[392326738,1761341432040,-184.61,0.00020187,2]
[392326739,1761341432049,-138.77107444,0.00025846,2]
[392326740,1761341432089,-136.68001866,0.00025846,2]
[392326741,1761341432100,-184.61,0.00026676,2]
[392326742,1761341432110,-2827.95097695,0.0003,2]
[392326743,1761341432120,-272.0,0.000303,5]
[392326744,1761341432130,-6032.8,0.00031,60]
[392326745,1761341432139,-184.61,0.00033165,2]
[392326746,1761341432149,-166.66,0.00033654,30]
[392326747,1761341432158,-2871.0,0.00034183,2]
[392326748,1761341432168,-166.66,0.00034362,30]
[392326749,1761341432177,-316.2877,0.00034988,2]
[392326751,1761341432187,-166.66,0.00035071,30]
[392326753,1761341432196,-268.1496886,0.00035088,7]
[392326755,1761341432205,-150.0,0.00035088,7]
[392326757,1761341432215,-463.5874416,0.00035431,2]
[392326759,1761341432224,-165.31,0.00035588,2]
[392326760,1761341432235,-152.0,0.00035598,3]
[392326761,1761341432245,-1392.96,0.00035741,2]
[392326762,1761341432255,-166.66,0.00035779,30]
[392326763,1761341432265,-476.35224409,0.00036019,2]
[392326764,1761341432275,-583.0,0.00036216,7]
[392326765,1761341432284,-500.0,0.0003634,30]
[392326766,1761341432295,-500.0,0.00036423,30]
[392326767,1761341432304,-166.66,0.00036488,30]
[392326768,1761341432314,-1747.852,0.00036571,120]
[392326769,1761341432323,-157.56,0.00036665,120]
[392326770,1761341432334,-150.0,0.00036665,2]
[392326771,1761341432344,-1495.51,0.00036665,2]
[392326772,1761341432353,-500.0,0.00036665,2]
[392326774,1761341432363,-2631.0,0.00036665,2]
[392326776,1761341432373,-374.37,0.00036665,2]
[392326778,1761341432382,-3300.74,0.00036665,2]
[392326780,1761341432392,-150.0,0.00036665,2]
[392326782,1761341432402,-150.0,0.00036665,120]
[392326784,1761341432411,-685.66326269,0.00036683,2]
[392326786,1761341432421,-160.36491304,0.00036683,15]
[392326787,1761341432431,-971.99172328,0.00036683,2]
[392326788,1761341432443,-15448.16364526,0.00036683,2]
[392326789,1761341432452,-1005.3645462,0.00036684,9]
[392326790,1761341432461,-227.86,0.000367,13]
[392326791,1761341432471,-500.0,0.00036712,7]
[392326792,1761341432481,-150.0,0.00036738,2]
[392326793,1761341432491,-2607.18738728,0.00036751,2]
[392326794,1761341432501,-151.0,0.0003678,14]
[392326795,1761341432511,-151.0,0.0003678,14]
[392326796,1761341432521,-257.21820883,0.00036783,15]
[392326797,1761341432531,-203.40611582,0.00036783,15]
[392326798,1761341432540,-500.0,0.00036783,2]
[392326799,1761341432550,-500.0,0.00036783,2]
[392326800,1761341432559,-150.0,0.00036783,2]
[392326801,1761341432568,-68908.81650045,0.00036783,2]
[392326802,1761341432580,-160405.78812056,0.00036783,2]
[392326803,1761341432591,-1254.41808677,0.00036783,2]
[392326804,1761341432603,-37525.10908847,0.00036783,2]
[392326805,1761341432614,-4678.2077,0.00036783,2]
[392326806,1761341432630,-10652.31341243,0.00036783,2]
[392326865,1761341440194,-180.05274618,0.00036682,15]
[392326866,1761341440204,-357718.5182552,0.00036783,2]
[392326867,1761341440213,-1372.83557782,0.00036783,2]
[392326868,1761341440222,-16238.6216119,0.00036783,7]
[392326869,1761341440232,-26000.52995811,0.00036783,7]
[392326870,1761341440242,-2321.2850679,0.00036783,2]
[392326871,1761341440251,-80632.68408049,0.00036783,2]
[392326872,1761341440260,-371.681602,0.00036783,2]
[392326873,1761341440269,-7379.76513439,0.00036783,2]
[392326874,1761341440279,-550.0,0.00036783,2]
[392326875,1761341440288,-1023.96654455,0.00036783,2]
[392326876,1761341440296,-1060.51664581,0.00036783,7]
[392326877,1761341440305,-1616.29938423,0.00036783,18]
[392326878,1761341440315,-2489.34534861,0.00036783,2]
[392326879,1761341440324,-5220.898587,0.00036783,2]
[392326880,1761341440333,-6000.0,0.00036783,2]
[392326881,1761341440343,-380.8618433,0.00036783,2]
[392326882,1761341440352,-1491.19156126,0.00036783,2]
[392326883,1761341440361,-813.57014976,0.00036783,2]
[392326884,1761341440370,-558.36802025,0.00036783,5]
[392326885,1761341440379,-7846.33219824,0.00036783,2]
[392326886,1761341440388,-438.60949906,0.00036784,2]
[392326887,1761341440397,-500.0,0.00036974,30]
[392326888,1761341440406,-1797.0,0.00037,2]
[392326889,1761341440416,-16420.15536851,0.0003704,2]
[392326890,1761341440426,-500.0,0.00037045,30]
[392326891,1761341440435,-678.86657509,0.00037196,30]
[392326892,1761341440444,-166.66,0.00037196,30]
[392326893,1761341440453,-176.55259323,0.000372,120]
[392326894,1761341440463,-500.0,0.00037237,30]
[392326895,1761341440472,-500.0,0.0003725,5]
[392326896,1761341440482,-500.0,0.0003725,5]
[392326897,1761341440491,-500.0,0.0003725,5]
[392326898,1761341440500,-500.0,0.0003725,5]
[392326899,1761341440509,-501.49068223,0.0003725,5]
[392326900,1761341440518,-500.0,0.0003725,5]
[392326901,1761341440527,-500.0,0.0003734,30]
[392326902,1761341440537,-16420.15536851,0.00037398,2]
[392326903,1761341440546,-300.0,0.000375,2]
[392326904,1761341440555,-344.75363738,0.000375,2]
[392326905,1761341440564,-500.0,0.00037534,7]
[392326906,1761341440574,-165.31,0.00037566,2]
[392326907,1761341440583,-176.3,0.00037569,2]
[392326908,1761341440592,-2401.64,0.00037569,2]
[392326909,1761341440602,-168.52,0.00037569,2]
[392326910,1761341440611,-336.58,0.00037569,2]
[392326911,1761341440620,-168.52,0.00037578,2]
[392326912,1761341440629,-583.0,0.00037587,120]
[392326913,1761341440638,-413.17,0.00037616,2]
[392326914,1761341440647,-1211.86,0.00037616,2]
[392326915,1761341440657,-300.0,0.00037616,2]
[392326916,1761341440666,-844.63,0.00037616,2]
[392326917,1761341440675,-300.0,0.00037616,2]
[392326918,1761341440684,-176.35,0.00037616,2]
[392326919,1761341440693,-176.35,0.00037616,2]
[392326920,1761341440702,-168.52,0.00037616,2]
[392326921,1761341440711,-176.35,0.00037616,2]
[392326922,1761341440720,-168.52,0.00037616,2]
[392326923,1761341440729,-168.52,0.00037616,2]
[392326924,1761341440738,-176.35,0.00037616,2]
[392326925,1761341440747,-168.52,0.00037616,2]
[392326926,1761341440756,-500.0,0.0003763,7]
[392326927,1761341440765,-500.0,0.0003763,7]
[392326928,1761341440774,-500.0,0.0003763,7]
[392326929,1761341440783,-500.0,0.0003763,7]
[392326930,1761341440793,-500.0,0.0003763,7]
[392326931,1761341440802,-500.0,0.0003763,7]
[392326932,1761341440811,-500.0,0.0003763,7]
[392326933,1761341440820,-500.0,0.0003763,7]
[392326934,1761341440829,-500.0,0.0003763,7]
[392326935,1761341440838,-500.0,0.0003763,7]
[392326936,1761341440847,-500.0,0.0003763,7]
[392326937,1761341440858,-500.0,0.0003763,7]
[392326938,1761341440868,-500.0,0.0003763,7]
[392326939,1761341440877,-500.0,0.0003763,7]
[392326940,1761341440886,-500.0,0.0003763,7]
[392326941,1761341440895,-500.0,0.0003763,7]
[392326942,1761341440904,-500.0,0.0003763,7]
[392326943,1761341440914,-500.0,0.0003763,7]
[392326944,1761341440923,-500.0,0.0003763,7]
[392326945,1761341440932,-500.0,0.0003763,7]
[392326946,1761341440941,-500.0,0.0003763,7]
[392326947,1761341440951,-500.0,0.0003763,7]
[392326948,1761341440962,-500.0,0.0003763,7]
[392326949,1761341440972,-231.6,0.0003763,7]
[392326950,1761341440982,-500.0,0.0003763,7]
[392326951,1761341440991,-500.0,0.0003763,7]
[392326952,1761341441001,-500.0,0.0003763,7]
[392326953,1761341441010,-500.0,0.0003763,7]
[392326954,1761341441019,-500.0,0.0003763,7]
[392326955,1761341441029,-500.0,0.0003763,7]
[392326956,1761341441040,-500.0,0.0003763,7]
[392326957,1761341441050,-500.0,0.0003763,7]
[392326958,1761341441060,-500.0,0.0003763,7]
[392326959,1761341441069,-500.0,0.0003763,7]
[392326960,1761341441080,-500.0,0.0003763,7]
[392326961,1761341441090,-500.0,0.0003763,7]
[392326962,1761341441099,-500.0,0.0003763,7]
[392326963,1761341441108,-500.0,0.0003763,7]
[392326964,1761341441119,-500.0,0.0003763,7]
[392326965,1761341441128,-500.0,0.0003763,7]
[392326966,1761341441137,-500.0,0.0003763,7]
[392326967,1761341441146,-500.0,0.0003763,7]
[392326968,1761341441156,-500.0,0.0003763,7]
[392326969,1761341441164,-500.0,0.0003763,7]
[392326970,1761341441173,-500.0,0.0003763,7]
[392326971,1761341441182,-500.0,0.0003763,7]
[392326972,1761341441191,-500.0,0.0003763,7]
[392326973,1761341441200,-500.0,0.0003763,7]
[392326974,1761341441209,-500.77,0.0003763,7]
[392326975,1761341441218,-168.0,0.00037695,7]
[392326976,1761341441228,-685.66326268,0.00037714,2]
[392326977,1761341441237,-1981.46584214,0.00037725,2]
[392326978,1761341441247,-168.0,0.00037743,2]
[392326979,1761341441256,-500.0,0.00037798,5]
[392326980,1761341441265,-500.0,0.00037798,5]
[392326981,1761341441274,-500.0,0.00037798,5]
[392326982,1761341441283,-500.0,0.0003786,30]
[392326983,1761341441292,-168.0,0.00037903,120]
[392326984,1761341441302,-5000.0,0.00037907,2]
[392326985,1761341441311,-3485.75443,0.0003792,2]
[392326986,1761341441320,-23777.97030971,0.0003793,2]
[392326987,1761341441329,-500.0,0.00037935,30]
[392326988,1761341441339,-5304.9590078,0.00038,2]
[392326989,1761341441348,-152.0,0.00038027,4]
[392326990,1761341441357,-300.0,0.00038035,2]
[392326991,1761341441366,-397.0,0.00038049,120]
[392326992,1761341441375,-4273.43107052,0.000381,2]
[392326993,1761341441385,-10740.43642811,0.000381,2]
[392326994,1761341441394,-196.52,0.00038116,50]
[392326995,1761341441404,-583.0,0.00038132,2]
[392326996,1761341441413,-6625.2234,0.00038136,2]
[392326997,1761341441422,-233.7175,0.00038136,2]
[392326998,1761341441431,-4059.8188,0.00038136,2]
[392326999,1761341441440,-151.0,0.00038136,30]
[392327000,1761341441451,-151.0,0.00038136,30]
[392327001,1761341441460,-151.0,0.00038136,30]
[392327002,1761341441469,-151.0,0.00038136,30]
[392327003,1761341441478,-151.0,0.00038136,30]
[392327004,1761341441487,-151.0,0.00038136,30]
[392327005,1761341441496,-324.92947398,0.00038137,2]
[392327006,1761341441506,-1000.0,0.00038156,2]
[392327007,1761341441516,-3524.5325,0.00038156,2]
[392327008,1761341441525,-1000.0,0.00038156,120]
[392327009,1761341441535,-500.0,0.00038199,2]
[392327010,1761341441545,-20000.0,0.000382,2]
[392327011,1761341441555,-151.0,0.000382,30]
[392327012,1761341441564,-151.0,0.000382,30]
[392327013,1761341441573,-151.0,0.000382,30]
[392327014,1761341441582,-151.0,0.000382,30]
[392327015,1761341441591,-151.0,0.000382,30]
[392327016,1761341441600,-151.0,0.000382,30]
[392327017,1761341441609,-216.194599,0.000382,30]
[392327018,1761341441619,-216.194599,0.000382,30]
[392327019,1761341441628,-216.194599,0.000382,30]